Cogmind - Beta 14 @@@ ROGUE MODE // 2025.03.05 @ 22:20:03 Player: KURIIRI Result: Self-destructed Performance ------------- Evolutions (4) 2000 Regions Visited (10) 2000 Robots Destroyed (258) 1290 Value Destroyed (8300) 8300 Prototype IDs (31) 620 Alien Tech Used (0) 0 Bonus (2755) 2755 TOTAL SCORE: 16965 Bonus ------- High Alert Combat Kills 589 Follower Combat Kills 816 Entered Garrisons 400 Used RIF Installer 1500 Friendly Fire -550 Cogmind --------- Core Integrity 648/850 Matter 123/300 Energy 250/250 System Corruption 1% Temperature Cool (0) Movement Hovering (411) Ox4 Location -6/Factory Parts ------- > --- POWER (2) -------- Light Angular Momentum Engine Cold Fusion Reactor > --- PROPULSION (4) --- Hovering Airjet-Titanium Exoskeleton > --- UTILITY (7) ------ Armored Scrap Engine Improved Cooling System (fused) High-capacity Storage Unit Layered Heavy Armor Plating Relay Coupler [NC] (12) > --- WEAPON (2) ------- Advanced Assault Cannon Burst Kinetic Phase Construct/C > --- INVENTORY (20) --- Fission Core Advanced Heat Sink Improved Kinecellerator Improved Weapon Cycler Heavy Armor Plating Relay Coupler [NC] (28) Rainbow Chip Gatling Laser Advanced Plasma Cannon Flak Cannon Advanced EMP Blaster Dirty Datajack (20) Remote Datajack Multitool Ripper Peak State ------------ > --- POWER ------------ Light Angular Momentum Engine Cold Fusion Reactor > --- PROPULSION ------- Hovering Airjet-Titanium Exoskeleton Armored Wheel > --- UTILITY ---------- Armored Scrap Engine Improved Cooling System High-capacity Storage Unit Layered Heavy Armor Plating Thermal Shield > --- WEAPON ----------- Burst Kinetic Phase Construct/C > --- INVENTORY -------- Light Nuclear Core Light Angular Momentum Engine Fission Core Advanced Heat Sink Improved Kinecellerator Improved Weapon Cycler Relay Coupler [NC] Relay Coupler [NC] Rainbow Chip Gatling Laser Advanced Plasma Cannon Flak Cannon Advanced Assault Cannon Advanced EMP Blaster Dirty Datajack Remote Datajack Multitool Ripper [Rating: 79] Favorites ----------- Power Improved Ion Engine Engine Improved Ion Engine Power Core Light Nuclear Core Reactor Cold Fusion Reactor Propulsion Compact Wheel Treads Armored Treads Leg Aluminum Leg Wheel Compact Wheel Hover Unit Constructs Utility High-capacity Storage Unit Device Improved Shield Generator Storage High-capacity Storage Unit Processor Visual Processing Unit Hackware Relay Coupler [NC] Protection Layered Heavy Armor Plating Weapon Gatling Laser Energy Gun Gatling Laser Energy Cannon Advanced Plasma Cannon Ballistic Gun Subdweller Machine Gun Ballistic Cannon Light Cannon Launcher Grenade Launcher Special Weapon Multitool Impact Weapon Hammer Slashing Weapon Ripper Special Melee Weapon Improved Datajack Build | -11 -10 -10 -10 -8 -8 -8 -8 -8 -8 -6 ------- Run | Yrd Mat Min Sub Mat Gar Mat Sto Gar Rec Fac Slots Evolved 8 | . . . . 4 . . . . . 4 Power 1 | . . . . . . . . . . 1 Propulsion 2 | . . . . 1 . . . . . 1 Utility 5 | . . . . 3 . . . . . 2 Weapon . | . . . . . . . . . . . Parts Attached 239 | 3 12 4 27 49 21 34 28 13 14 34 Power 10 | . . . 1 1 . 1 1 . . 6 Engine 6 | . . . 1 1 . 1 1 . . 2 Core 3 | . . . . . . . . . . 3 Reactor 1 | . . . . . . . . . . 1 Propulsion 24 | 2 2 . 4 9 4 . 1 . 1 1 Treads 10 | 2 1 . 2 4 1 . . . . . Leg 1 | . . . . . . . . . 1 . Wheel 13 | . 1 . 2 5 3 . 1 . . 1 Hover . | . . . . . . . . . . . Flight . | . . . . . . . . . . . Utility 50 | 1 3 1 2 9 1 11 3 1 3 15 Device 22 | 1 1 . . 4 . 6 2 . 1 7 Storage 4 | . 1 . 1 1 . 1 . . . . Processor 2 | . . . . 1 . . . . . 1 Hackware 4 | . . . . . . 2 . . . 2 Protection 18 | . 1 1 1 3 1 2 1 1 2 5 Artifact . | . . . . . . . . . . . Weapon 155 | . 7 3 20 30 16 22 23 12 10 12 Energy Gun 58 | . . . 3 18 6 11 12 6 2 . Energy Cannon 15 | . . . 1 . 2 3 5 1 1 2 Ballistic Gun 11 | . 1 . 4 4 . . . . 1 1 Ballistic Cannon 10 | . 3 1 1 . . . . . 1 4 Launcher 14 | . 3 1 5 1 4 . . . . . Special Weapon 21 | . . . . 2 3 4 4 2 1 5 Impact Weapon 3 | . . 1 2 . . . . . . . Slashing Weapon 20 | . . . 4 5 1 1 2 3 4 . Piercing Weapon . | . . . . . . . . . . . Special Melee Weapon 3 | . . . . . . 3 . . . . Unidentified Prototypes 12 | . . . . 4 . 1 4 . 1 2 Parts Lost 15 | . 1 . 4 2 . 1 . . . 7 Power 2 | . . . 1 . . . . . . 1 Propulsion 4 | . . . 1 . . . . . . 3 Utility 5 | . . . 1 . . 1 . . . 3 Weapon 4 | . 1 . 1 2 . . . . . . Highest Loss Streak 3 | . 1 . 3 1 . 1 . . . 2 To Critical Strikes . | . . . . . . . . . . . Average Slot Usage (%) 89 | . 99 100 86 89 90 89 89 90 83 74 Engine 10 | . 14 14 12 9 9 9 9 9 9 4 Treads 11 | . 20 14 17 8 9 9 9 9 8 4 Wheel 14 | . 6 14 10 17 18 18 17 18 16 9 Device 12 | . 5 2 . 14 18 17 18 18 20 20 Storage 9 | . 14 14 7 9 9 9 9 9 9 6 Protection 8 | . 8 11 9 8 9 9 8 9 5 2 Energy Gun 9 | . 1 . 4 16 10 16 15 15 9 1 Energy Cannon 1 | . . . 2 . 2 1 1 . . 3 Ballistic Gun 2 | . . . 10 . . . . . . . Ballistic Cannon 2 | . 13 10 . . . . . . . 6 Launcher 3 | . 11 15 5 . 3 . . . . . Slashing Weapon 1 | . . . 4 . . . . 1 5 . Peak Build Rating 79 | 9 10 10 17 37 45 49 48 48 56 79 Average Rating 31 | 8 8 8 11 31 40 46 46 46 45 69 On Entrance 29 | 6 9 10 8 17 37 45 46 48 46 53 Naked Turns . | . . . . . . . . . . . Heaviest Build 96 | 14 94 94 94 95 87 86 86 86 81 96 Greatest Support 40 | 40 40 16 40 32 32 24 24 24 24 40 Greatest Overweight (x) 7 | . 5 5 5 3 3 3 3 3 4 7 Average Overweight (x) 2 | . 2 5 2 1 2 3 3 3 2 3 Largest Inventory Capacity 25 | 8 25 25 25 25 20 20 20 20 20 20 Average Capacity 18 | 8 16 25 15 20 20 20 20 20 20 20 Most Carried 25 | 7 15 17 25 23 20 20 20 20 20 20 Average Carried 16 | 5 10 14 12 19 19 19 19 19 19 19 Final Capacity 25 | 8 25 25 25 20 20 20 20 20 20 20 Final Carried 24 | 4 14 17 24 20 20 19 19 20 20 16 Scrap Engine Consumption 29 | . . . . . . . . . 17 12 Constructs Created 2 | . . . . . . . . . 2 . Constructs Modified 6 | . . . . . . . . . 2 4 Class Distribution -------------------- 60% | Mutant 20% | Commander-Mutant 9% | Subdweller-Mutant 9% | Scavenger-Mutant Dominant Class ---------------- Mutant | -10/Materials Mutant | -10/Mines Mutant | -10/Subcaves Mutant | -8/Materials Mutant | -8/Garrison Scavenger-Mutant | -8/Materials Commander-Mutant | -8/Storage Commander-Mutant | -8/Garrison Commander-Mutant | -8/Recycling Mutant | -6/Factory Resources | -11 -10 -10 -10 -8 -8 -8 -8 -8 -8 -6 ----------- Run | Yrd Mat Min Sub Mat Gar Mat Sto Gar Rec Fac Matter Collected 4685 | 233 570 149 751 591 435 418 420 150 209 759 Remotely . | . . . . . . . . . . . Salvage Created 10036 | 100 633 144 456 1735 1184 1201 1836 164 1373 1210 Parts 502 | 6 54 11 29 86 67 61 98 9 42 39 Haulers Intercepted 9 | . 2 . . 5 . 2 . . . . Recyclers Shooed 8 | . . 3 . 2 . 1 1 . . 1 Parts Field Recycled . | . . . . . . . . . . . Retrieved Matter . | . . . . . . . . . . . Parts Self-Destructed 8 | . . . 8 . . . . . . . Prevented . | . . . . . . . . . . . Kills | -11 -10 -10 -10 -8 -8 -8 -8 -8 -8 -6 ------- Run | Yrd Mat Min Sub Mat Gar Mat Sto Gar Rec Fac Combat Hostiles Destroyed 177 | . 15 4 18 28 21 21 33 4 7 26 Melee 9 | . . . 3 3 . . . . 3 . Guns 87 | . . . 4 21 5 20 30 1 4 2 Cannons 39 | . 3 . 3 . 4 1 2 2 . 24 AOE 40 | . 12 4 8 4 12 . . . . . Classes Destroyed 17 | 2 7 . 3 1 . . . . 3 1 Worker 18 | . 4 . . 1 . 5 6 . . 2 Builder 5 | . 3 . . . . . 1 . 1 . Tunneler 3 | 1 . 1 . . . 1 . . . . Hauler 9 | . 2 . . 5 . 2 . . . . Recycler 24 | 1 1 2 . 3 . 1 3 . 12 1 Operator 5 | . 1 . . 1 . . 2 . 1 . Watcher 15 | . 3 . . 5 . 3 2 . . 2 Swarmer 36 | . 3 2 3 8 7 4 4 1 1 3 Grunt 89 | . 12 2 . 11 13 11 17 3 2 18 Brawler 4 | . . . . 2 . 1 . . . 1 Duelist 1 | . . . . . . . . . . 1 Protector 1 | . . . . . . . . . 1 . Sentry 29 | . . . 1 7 1 5 12 . 2 1 Programmer 5 | . . . . . . . . . 3 2 Artisan 1 | . . . 1 . . . . . . . Subdweller 14 | . . . 14 . . . . . . . Scientist 1 | . . . . . . . . . 1 . Best Kill Streak 9 | 2 8 5 3 4 9 5 8 3 3 5 Combat Bots Only 9 | . 5 4 3 4 9 5 6 3 3 4 Max Kills in Single Turn 3 | 1 2 2 2 2 3 2 2 1 1 2 Gunslinging 1 | . . . . . . 1 1 . . . Exploded 3 | . 1 1 2 2 3 . . . . . Melee 1 | . . . 1 1 . . . . 1 . Uniques/NPCs Destroyed . | . . . . . . . . . . . Combat | -11 -10 -10 -10 -8 -8 -8 -8 -8 -8 -6 -------- Run | Yrd Mat Min Sub Mat Gar Mat Sto Gar Rec Fac Hostile Shots Fired 612 | . 22 7 49 116 42 67 67 13 16 213 Missed 168 | . 3 2 13 35 9 18 24 2 4 58 Damage Taken 6467 | . 259 76 830 1018 337 569 473 104 131 2670 Core 516 | . 15 14 65 82 35 40 20 6 37 202 Absorbed by Shields 738 | . . . . 16 102 163 174 41 48 194 Ignored by Resistances 230 | . . . . . . . . . . 230 Regen/Repaired (Parts) 1584 | . 43 . . 240 . . 453 . 5 843 Core Remaining (%) 74 | 100 . . 62 . . . . . 60 . Volleys Fired 662 | 3 50 13 85 92 96 60 104 13 10 136 Largest 2 | 2 2 2 2 2 2 2 2 2 2 2 Hottest 178 | 60 70 65 90 160 178 178 178 178 160 160 Shots Fired 1004 | 6 59 18 105 176 117 110 169 24 14 206 Gun 616 | 6 22 . 64 174 66 95 133 19 14 23 Cannon 290 | . 13 10 11 . 25 15 36 5 . 175 Launcher 75 | . 24 8 30 2 11 . . . . . Special 23 | . . . . . 15 . . . . 8 Kinetic 264 | 3 17 10 51 21 . . . . . 162 Thermal 636 | . . . 24 153 106 110 169 24 14 36 Explosive 64 | . 24 8 30 2 . . . . . . Electromagnetic 32 | 3 18 . . . 11 . . . . . Robot Hit Streak 20 | 3 6 6 20 13 14 16 16 11 7 16 Robot Miss Streak 8 | 3 3 2 2 5 3 6 7 5 4 8 Penetration Max . | . . . . . . . . . . . Secondary Targets 6 | . . . . 1 . 3 2 . . . Max Gunslinging Chain 1 | . . . . 1 . 1 1 . . . Shots Hit Robots 669 | 3 24 12 42 130 65 85 115 17 40 136 Core Hits 510 | 3 40 13 30 69 53 69 100 9 26 98 Critical Kills 1 | . . . . 1 . . . . . . Critical Parts Destroyed 1 | . 1 . . . . . . . . . Critical Strikes 11 | . 2 1 1 5 1 . . . . 1 Burn 3 | . . . . 3 . . . . . . Destroy 3 | . 1 . 1 1 . . . . . . Blast 3 | . 1 1 . . . . . . . 1 Sever 2 | . . . . 1 1 . . . . . Melee Attacks 110 | . . 6 28 21 7 6 2 4 36 . Impact 14 | . . 6 8 . . . . . . . Slashing 91 | . . . 20 21 7 1 2 4 36 . Piercing . | . . . . . . . . . . . Sneak Attacks 29 | . . . 2 3 . 5 . . 19 . Combat Hostiles 3 | . . . . . . . . . 3 . Follow-up Attacks . | . . . . . . . . . . . Damage Inflicted 21577 | 35 1654 560 2198 3348 2403 2146 3014 587 2264 3368 Guns 9650 | 35 189 . 316 2567 585 2005 2775 441 380 357 Cannons 4265 | . 107 108 141 . 566 141 239 146 . 2817 Explosions 4368 | . 1321 449 1367 221 816 . . . . 194 Melee 3160 | . . . 374 557 345 . . . 1884 . Ramming 43 | . 37 3 . 3 . . . . . . Kinetic 3314 | 8 133 108 212 290 . . . . . 2563 Thermal 10627 | . 34 . 245 2277 1333 2146 3014 587 380 611 Explosive 3502 | . 1271 449 1367 221 . . . . . 194 Electromagnetic 931 | 27 179 . . . 725 . . . . . Impact . | . . . . . . . . . . . Slashing 3160 | . . . 374 557 345 . . . 1884 . Piercing . | . . . . . . . . . . . Highest Corruption 5 | . 1 1 1 . . 4 4 4 5 4 Average Corruption 2 | . 1 1 1 . . 3 4 4 4 3 Corruption Purged 4 | . . . . . . . . . . 4 Corruption Blocked . | . . . . . . . . . . . Effects 156 | . 15 4 27 . . 17 39 9 37 8 Message Errors 40 | . 2 2 9 . . 3 11 4 7 2 Matter Fused 39 | . 7 . 5 . . 6 10 . 10 1 Heat Flow Errors 19 | . . 1 3 . . . 6 1 8 . Energy Discharges 13 | . 2 1 4 . . 1 1 . 3 1 Parts Rejected 3 | . . . . . . . 1 1 1 . Parts Fused 6 | . . . 1 . . 2 1 . 1 1 Data Loss (minor) 14 | . 3 . 2 . . 2 3 1 2 1 Data Loss (major) 10 | . 1 . 1 . . 1 3 1 3 . Misfires 6 | . . . 2 . . . 1 . 1 2 Alerts 3 | . . . . . . 1 2 . . . Weapon Failures 3 | . . . . . . 1 . 1 1 . Overload Shots . | . . . . . . . . . . . Overflow Damage 543 | . 13 8 5 51 7 . 3 . 432 24 Projectiles 3 | . . . . . . . 3 . . . Explosions 57 | . 13 8 5 . 7 . . . . 24 Melee 483 | . . . . 51 . . . . 432 . Knockbacks 54 | . 1 . . . . . . . . 53 Impact . | . . . . . . . . . . . Kinetic 45 | . 1 . . . . . . . . 44 Secondary 9 | . . . . . . . . . . 9 Self-Inflicted Damage 416 | . 63 . 93 1 . . . . . 259 Shots 11 | . 4 . 3 . . . . . . 4 Rammed 10 | . 7 1 . 1 . 1 . . . . Targets Rammed 10 | . 7 1 . 1 . 1 . . . . Kicked . | . . . . . . . . . . . Crushed . | . . . . . . . . . . . Highest Temperature 456 | 20 57 237 212 321 273 350 228 237 190 456 Average Temperature 79 | 15 16 77 50 64 80 101 49 82 61 130 Received Heat Transfer 2592 | . 87 45 159 467 148 299 228 42 15 1102 Effects 6 | . . 1 . 3 . 1 . . . 1 Energy Bleed 2 | . . 1 . . . 1 . . . . Interference 3 | . . . . 3 . . . . . . Damage (minor) 1 | . . . . . . . . . . 1 Siege Activations . | . . . . . . . . . . . Robots Corrupted . | . . . . . . . . . . . Combat Hostiles . | . . . . . . . . . . . Parts Fried 2 | . 1 . . . 1 . . . . . Impact Corruptions . | . . . . . . . . . . . Robots Melted 2 | . . . . . . . 1 1 . . Combat Hostiles 2 | . . . . . . . 1 1 . . Parts Melted 35 | . . . 1 6 . 10 15 . 2 1 Heat Transferred 21027 | . 50 . 310 4583 2259 4425 6175 1125 800 1300 Parts Sabotaged . | . . . . . . . . . . . Parts Stolen . | . . . . . . . . . . . Parts Stripped . | . . . . . . . . . . . Power Chain Reactions 4 | . 2 . . . 2 . . . . . Alert | -11 -10 -10 -10 -8 -8 -8 -8 -8 -8 -6 ------- Run | Yrd Mat Min Sub Mat Gar Mat Sto Gar Rec Fac Peak Influence 1005 | 10 550 232 . 414 817 509 706 1005 579 450 Initial 451 | . 6 105 . . 29 397 58 364 451 382 Average 309 | 9 340 108 . 185 455 266 403 746 443 248 Maximum Alert Level 3 | . 2 1 . 2 3 2 3 3 2 2 Low Security (%) 26 | 100 4 88 . 42 19 39 9 . . 42 Level 1 46 | . 68 11 . 56 6 34 47 22 38 46 Level 2 26 | . 26 . . 1 69 25 42 8 61 10 Level 3 1 | . . . . . 4 . . 69 . . Level 4 . | . . . . . . . . . . . Level 5 . | . . . . . . . . . . . High Security . | . . . . . . . . . . . Max Security . | . . . . . . . . . . . Squads Dispatched 26 | . 3 . . 6 . 2 10 . . 5 Investigation 7 | . 3 . . 1 . 1 1 . . 1 Extermination 1 | . . . . . . . . . . 1 Reinforcement 8 | . . . . 1 . 1 3 . . 3 Assault . | . . . . . . . . . . . Garrison 10 | . . . . 4 . . 6 . . . Intercept . | . . . . . . . . . . . Searches Triggered . | . . . . . . . . . . . Construction Impeded 1 | . . . . . . . . . . 1 Haulers Reinforced . | . . . . . . . . . . . Active Scanning Responses . | . . . . . . . . . . . Cargo Convoy Interrupts . | . . . . . . . . . . . Stealth | -11 -10 -10 -10 -8 -8 -8 -8 -8 -8 -6 --------- Run | Yrd Mat Min Sub Mat Gar Mat Sto Gar Rec Fac Distress Signals 9 | . . . . 2 . 1 5 . . 1 Communications Jammed . | . . . . . . . . . . . Distress Signals . | . . . . . . . . . . . Times Spotted 235 | . 17 2 17 47 24 27 47 13 8 33 Peak Tracking Total 7 | . 4 2 3 4 4 5 7 5 3 6 Tactical Retreats 15 | . 1 . . 4 3 1 5 . . 1 Traps | -11 -10 -10 -10 -8 -8 -8 -8 -8 -8 -6 ------- Run | Yrd Mat Min Sub Mat Gar Mat Sto Gar Rec Fac Traps Triggered 13 | . 4 . . . 6 2 1 . . . Indirectly 6 | . . . . . 6 . . . . . Trap Hack Attempts 5 | . . . . . . 5 . . . . Triggered . | . . . . . . . . . . . Disarmed 4 | . . . . 3 . 1 . . . . Reprogrammed . | . . . . . . . . . . . Reused . | . . . . . . . . . . . Traps Extracted . | . . . . . . . . . . . Installed . | . . . . . . . . . . . Triggered . | . . . . . . . . . . . Machines | -11 -10 -10 -10 -8 -8 -8 -8 -8 -8 -6 ---------- Run | Yrd Mat Min Sub Mat Gar Mat Sto Gar Rec Fac Machines Disabled 25 | . 9 . 1 2 2 . 2 1 . 8 Max in Single Turn 4 | . 2 . 1 1 1 . 1 1 . 4 Garrison Access 1 | . . . . . . . . . . 1 Garrison Relay 3 | . . . . . 2 . . 1 . . Machines Repaired . | . . . . . . . . . . . Machines Dismantled . | . . . . . . . . . . . Machines Sabotaged . | . . . . . . . . . . . Overloaded Fab Kills . | . . . . . . . . . . . Hacking | -11 -10 -10 -10 -8 -8 -8 -8 -8 -8 -6 --------- Run | Yrd Mat Min Sub Mat Gar Mat Sto Gar Rec Fac Machines Accessed 68 | . 10 . 2 13 2 9 12 3 11 6 Terminals 44 | . 7 . . 9 2 6 9 3 5 3 Fabricators . | . . . . . . . . . . . Repair Stations 6 | . 1 . . 1 . 1 2 . . 1 Recycling Units 9 | . 2 . . 1 . . . . 5 1 Scanalyzers 3 | . . . . 1 . 2 . . . . Garrison Access 3 | . . . . 1 . . 1 . . 1 Total Hacks 215 | . 31 . 5 56 6 33 36 5 28 15 Successful 140 | . 17 . 5 40 3 19 25 2 21 8 Failed 74 | . 14 . . 15 3 14 11 3 7 7 Catastrophic 9 | . 3 . . 2 . . . 2 . 2 Database Lockouts 1 | . . . . 1 . . . . . . Manual 144 | . 27 . . 33 3 20 21 3 26 11 Terminals 150 | . 27 . . 37 6 24 27 5 15 9 Fabricators . | . . . . . . . . . . . Repair Stations 22 | . 2 . . 8 . 3 6 . . 3 Recycling Units 16 | . 2 . . 1 . . . . 11 2 Scanalyzers 13 | . . . . 7 . 6 . . . . Garrison Access 7 | . . . . 3 . . 3 . . 1 Terminal Hacks 43 | . 4 . 5 11 3 4 8 2 5 1 Record 4 | . . . 4 . . . . . . . Part Schematic 1 | . . . . . . . . . 1 . Robot Analysis 7 | . 3 . . 2 . 1 . . 1 . Prototype ID Bank 3 | . . . . 2 . 1 . . . . Open Door 4 | . . . . . . . 4 . . . Terminal Index 1 | . . . . 1 . . . . . . Garrison Index 1 | . . . . . . . 1 . . . Alert Level 1 | . . . . 1 . . . . . . Unreport Threat 8 | . . . . 2 1 2 2 . 1 . Locate Traps 4 | . . . . 2 . . 1 . . 1 Disarm Traps 1 | . . . . 1 . . . . . . Hauler Manifests 1 | . 1 . . . . . . . . . Garrison Registry 2 | . . . . . 1 . . 1 . . Patrol Navigation 1 | . . . . . 1 . . . . . Security Stations 1 | . . . . . . . . 1 . . Derelict Proto ID Bank 1 | . . . 1 . . . . . . . Release Object 2 | . . . . . . . . . 2 . Fabricator Hacks . | . . . . . . . . . . . Repair Station Hacks 15 | . 2 . . 8 . 1 2 . . 2 Scan Component 8 | . 1 . . 4 . 1 1 . . 1 Repair 7 | . 1 . . 4 . . 1 . . 1 Recycling Unit Hacks . | . . . . . . . . . . . Scanalyzer 11 | . . . . 6 . 5 . . . . Insert Component 6 | . . . . 3 . 3 . . . . Analyze 5 | . . . . 3 . 2 . . . . Garrison Access Hacks 3 | . . . . 1 . . 1 . . 1 Unlock Access 2 | . . . . 1 . . 1 . . . Seal Access 1 | . . . . . . . . . . 1 Unauthorized Hacks 68 | . 11 . . 14 . 9 14 . 16 4 Terminals 52 | . 9 . . 12 . 9 12 . 7 3 Track 2 | . . . . 1 . . 1 . . . Assimilate 5 | . . . . 2 . . 3 . . . Botnet 10 | . 2 . . 2 . 2 1 . 2 1 Disrupt 2 | . . . . 1 . . 1 . . . Operators 5 | . 1 . . 1 . 1 1 . . 1 Skim 28 | . 6 . . 5 . 6 5 . 5 1 Fabricators . | . . . . . . . . . . . Repair Stations 1 | . . . . . . . 1 . . . Mechanics 1 | . . . . . . . 1 . . . Recycling Units 13 | . 2 . . 1 . . . . 9 1 Reject 3 | . . . . 1 . . . . 2 . Mask 3 | . . . . . . . . . 2 1 Tunnel 7 | . 2 . . . . . . . 5 . Scanalyzers . | . . . . . . . . . . . Garrison Access 2 | . . . . 1 . . 1 . . . Reprogram 2 | . . . . 1 . . 1 . . . Data Cores Recovered 2 | . 1 . . . . . 1 . . . Used . | . . . . . . . . . . . Hacking Detections 48 | . 8 . . 13 1 7 9 1 5 4 Full Trace Events 4 | . 1 . . . 1 1 . . . 1 Feedback Events . | . . . . . . . . . . . Feedback Blocked . | . . . . . . . . . . . Robot Schematics Acquired . | . . . . . . . . . . . Robots Built . | . . . . . . . . . . . Authchips . | . . . . . . . . . . . Time . | . . . . . . . . . . . Total Robot Build Rating . | . . . . . . . . . . . Part Schematics Acquired 6 | . . . . 3 . 2 . . 1 . Parts Built . | . . . . . . . . . . . Authchips . | . . . . . . . . . . . Time . | . . . . . . . . . . . Total Part Build Rating . | . . . . . . . . . . . Parts Repaired 7 | . 1 . . 4 . . 1 . . 1 Time 244 | . 26 . . 134 . . 56 . . 28 Parts Recycled . | . . . . . . . . . . . Recycled Matter . | . . . . . . . . . . . Retrieved Matter . | . . . . . . . . . . . Retrieved Components . | . . . . . . . . . . . Parts Scanalyzed 6 | . . . . 3 . 3 . . . . Part Schematics Acquired 5 | . . . . 3 . 2 . . . . Parts Damaged . | . . . . . . . . . . . Bothacking | -11 -10 -10 -10 -8 -8 -8 -8 -8 -8 -6 ------------ Run | Yrd Mat Min Sub Mat Gar Mat Sto Gar Rec Fac Used RIF Installer 3 | . . . . . 2 . . 1 . . Zone Cloak 2 | . . . . . 1 . . 1 . . Robots Hacked 7 | . . . . . . 3 . . . 4 Non-combat 5 | . . . . . . 3 . . . 2 Combat 2 | . . . . . . . . . . 2 Robot Hacks Applied 11 | . . . . . . 4 . . . 7 parse_system 3 | . . . . . . 1 . . . 2 drop_inventory 1 | . . . . . . 1 . . . . check_alert 1 | . . . . . . . . . . 1 purge_threat 3 | . . . . . . 1 . . . 2 map_route 1 | . . . . . . . . . . 1 amplify_resonance 1 | . . . . . . . . . . 1 formatsys_low 1 | . . . . . . 1 . . . . Relay Couplers Released 10 | . . . . . 7 . . 3 . . Machine Destruction 10 | . . . . . 7 . . 3 . . Attached 3 | . . . . . . 1 . . . 2 Fabnet Peak Effective % . | . . . . . . . . . . . Robots Rewired 7 | . . . . . . . . . 7 . Allies Hacked . | . . . . . . . . . . . Hacks Repelled . | . . . . . . . . . . . Allies | -11 -10 -10 -10 -8 -8 -8 -8 -8 -8 -6 -------- Run | Yrd Mat Min Sub Mat Gar Mat Sto Gar Rec Fac Total Allies 23 | . . . . 2 . 1 13 . 7 . Largest Group 13 | . . . . 2 2 1 13 10 12 7 Highest-Rated Group 228 | . . . . 25 25 26 215 167 228 139 Highest-Rated Ally 29 | . . . . 15 15 26 29 29 29 27 Total Orders 55 | . . . . 9 19 6 10 . 11 . STAY 28 | . . . . 6 9 3 5 . 5 . FOLLOW 27 | . . . . 3 10 3 5 . 6 . Ally Attacks 164 | . . . . . 11 . 36 51 54 12 Total Damage 2055 | . . . . . 172 . 390 646 737 110 Kills 28 | . . . . . 4 . 4 12 8 . Allies Corrupted . | . . . . . . . . . . . Allies Melted . | . . . . . . . . . . . Intel | -11 -10 -10 -10 -8 -8 -8 -8 -8 -8 -6 ------- Run | Yrd Mat Min Sub Mat Gar Mat Sto Gar Rec Fac Robot Analysis Total 7 | . 3 . . 2 . 1 . . 1 . Derelict Logs Recovered 3 | . . 1 2 . . . . . . . Drone Launches . | . . . . . . . . . . . Drone Recoveries . | . . . . . . . . . . . Exploration | -11 -10 -10 -10 -8 -8 -8 -8 -8 -8 -6 ------------- Run | Yrd Mat Min Sub Mat Gar Mat Sto Gar Rec Fac Turns Passed 20159 | 48 2639 496 3881 4539 1254 1794 2048 333 1728 1399 Spaces Moved 9806 | 23 1285 249 2203 1573 658 997 1048 176 1034 560 Core . | . . . . . . . . . . . Treads 1700 | 13 650 . 949 . . . . . 8 80 Legs 10 | 10 . . . . . . . . . . Wheels 8066 | . 635 249 1254 1573 658 997 1048 176 1026 450 Hover 30 | . . . . . . . . . . 30 Flight . | . . . . . . . . . . . Fastest Speed 100 | 120 160 175 100 107 115 135 135 135 120 120 Average Speed 145 | 142 167 175 157 129 130 135 135 135 135 164 Slowest Speed 411 | 160 175 175 240 131 135 135 135 135 298 411 Overloaded Moves . | . . . . . . . . . . . Propulsion Burnouts . | . . . . . . . . . . . Robots Hopped . | . . . . . . . . . . . Cave-ins Triggered . | . . . . . . . . . . . Exploration Rate (%) 63 | 3 99 51 86 84 64 72 88 37 96 16 Regions Visited 10 Branch Regions 4 Pre-discovered Areas 17 | . 3 2 1 . . 1 3 . 7 . Known Exits Taken 4 | . . . . 1 . 1 1 . 1 . Unknown Exits Taken 4 | 1 1 1 1 . . . . . . . Scrap Searched 8 | . . 1 7 . . . . . . . Spaces Dug 66 | . 19 . 14 14 . 6 5 . 2 6 Terrain Destroyed 391 | . 155 24 123 16 2 10 23 . 2 36 Melee 17 | . . . 2 10 . 1 2 . 2 . Projectile 58 | . . . 12 1 1 9 21 . . 14 AOE 316 | . 155 24 109 5 1 . . . . 22 Terrain Rammed . | . . . . . . . . . . . Walls Destroyed . | . . . . . . . . . . . Machines Disabled . | . . . . . . . . . . . Actions | -11 -10 -10 -10 -8 -8 -8 -8 -8 -8 -6 --------- Run | Yrd Mat Min Sub Mat Gar Mat Sto Gar Rec Fac Total 14435 | 34 1708 275 2470 3868 918 1302 1467 229 1296 868 Wait 3283 | . 338 . 81 2052 113 178 277 20 116 108 Move 9795 | 22 1284 248 2202 1572 657 996 1047 174 1033 560 Hop . | . . . . . . . . . . . Pick Up 103 | 2 14 3 27 28 8 4 . 2 6 9 Fast Attach 55 | 1 3 . 6 17 2 4 6 1 6 9 Attach 29 | 2 3 . 3 4 . 3 . . 1 13 Detach 10 | . . . 2 2 . 1 . . 2 3 Swap 156 | . 6 4 18 29 19 27 22 12 7 12 Drop 120 | 4 3 . 10 40 14 12 4 1 16 16 Fire 662 | 3 50 13 85 92 96 60 104 13 10 136 Melee 110 | . . 6 28 21 7 6 2 4 36 . Ram 2 | . . . . 1 . 1 . . . . Kick . | . . . . . . . . . . . Crush 8 | . 7 1 . . . . . . . . Escape Stasis . | . . . . . . . . . . . Rewire 63 | . . . . . . 1 . . 62 . Trap 5 | . . . . . . 5 . . . . Miscellaneous 34 | . . . 8 10 2 4 5 2 1 2 Route ------- -11/Scrapyard -10/Materials (discovered 4 exits: *Mat x3 / [*Min]) -10/Mines (discovered 2 exits: *Mat / *Sub) -10/Subcaves (discovered 3 exits: *Mat x2 / Rec) -8/Materials (discovered 5 exits: *Fac x3 / *Sto / Gar) -8/Garrison (discovered 4 exits: *Mat x4) -8/Materials (discovered 5 exits: *Fac x3 / *Sto x2) -8/Storage (discovered 2 exits: *Fac / Gar) -8/Garrison (discovered 3 exits: *Rec x3) -8/Recycling -6/Factory (discovered 6 exits: Fac x4 / *Low x2) History --------- Turn | Location | Event 10 | -11/Scrapyard | Discovered new exit (range 3) 49 | -11/Scrapyard | Entered Materials 315 | -10/Materials | Build established: Mutant 322 | -10/Materials | Discovered new exit (range 8) 570 | -10/Materials | Discovered new exit (range 15) 904 | -10/Materials | Discovered new exit (range 12) 1271 | -10/Materials | Discovered new exit (range 13) 1324 | -10/Materials | Learned location of Recycling (-8) 1388 | -10/Materials | Learned 4 Recycling zone layouts 1405 | -10/Materials | Learned Storage garrison access intel 1415 | -10/Materials | Learned Recycling recycling unit intel 1447 | -10/Materials | Identified exit to Materials 1479 | -10/Materials | Learned location of 1 exit from Recycling 1650 | -10/Materials | Repaired Grenade Launcher 2688 | -10/Materials | Entered Mines 2689 | -10/Mines | Learned location of Storage (-8) 2708 | -10/Mines | Discovered exit to Materials (range 15) 2828 | -10/Mines | Discovered new exit (range 3) 3184 | -10/Mines | Entered Subcaves 3237 | -10/Subcaves | Shifting Twisted Machinery released Mak. Laser 3439 | -10/Subcaves | Discovered new exit (range 5) 3535 | -10/Subcaves | Shifting Twisted Machinery released Battle Rifle 3617 | -10/Subcaves | Shifting Twisted Machinery released Battle Rifle 3774 | -10/Subcaves | Visited 4L-MR0's lab 4018 | -10/Subcaves | Ambushed by Subdweller buried in earth 4057 | -10/Subcaves | Lost 3 parts (1p1u1w) 4707 | -10/Subcaves | Discovered new exit (range 15) 4711 | -10/Subcaves | Learned location of Zion (-6) 4711 | -10/Subcaves | Met a Zionite searching for "candidates" 4760 | -10/Subcaves | Build established: Subdweller-Mutant 4779 | -10/Subcaves | Visited Clippyterm 4784 | -10/Subcaves | Identified exit to Recycling 4784 | -10/Subcaves | Learned Research security intel 4801 | -10/Subcaves | Learned Materials emergency access door positions 5091 | -10/Subcaves | A swath of the cavern ceiling suddenly collapsed 5346 | -10/Subcaves | Disturbed a concealed Subdweller 5444 | -10/Subcaves | Disturbed a concealed Subdweller 5452 | -10/Subcaves | Disturbed a concealed Subdweller 6696 | -10/Subcaves | Build established: Mutant 6789 | -10/Subcaves | Found Rainbow Chip 6873 | -10/Subcaves | A swath of the cavern ceiling suddenly collapsed 7065 | -10/Subcaves | Entered Materials 7065 | -8/Materials | Evolved 4 slots: Propulsion x1, Utility x3 7297 | -8/Materials | Discovered new exit (range 3) 7403 | -8/Materials | Discovered new exit (range 10) 7778 | -8/Materials | Discovered new exit (range 18) 7784 | -8/Materials | Central database locked down 7894 | -8/Materials | Learned Factory emergency access door positions 7909 | -8/Materials | Discovered new exit (range 3) 7962 | -8/Materials | Garrison activated, responded to threat 7973 | -8/Materials | Learned location of 1 exit from Lower Caves 8000 | -8/Materials | Learned location of 1 exit from Recycling 8019 | -8/Materials | Learned Storage terminal intel 8029 | -8/Materials | Learned location of 1 exit from Lower Caves 8030 | -8/Materials | Learned Storage stockpile data 8041 | -8/Materials | Learned Storage emergency access door positions 8061 | -8/Materials | Learned location of 2 exits from Factory 8132 | -8/Materials | Learned Factory emergency access door positions 9002 | -8/Materials | Garrison activated, responded to threat 10528 | -8/Materials | Repaired Com. Wheel 10573 | -8/Materials | Repaired Imp. Shield Generator 10601 | -8/Materials | Repaired Lgt. Treads 10640 | -8/Materials | Repaired Arm. Treads 10726 | -8/Materials | Garrison activated, responded to threat 11367 | -8/Materials | Identified exit to Garrison 11592 | -8/Materials | Garrison activated, responded to threat 11604 | -8/Materials | Entered Garrison 11604 | -8/Garrison | Accompanied by 2 allies 11664 | -8/Garrison | Installed Relay Interface Framework 11678 | -8/Garrison | Triggered checkpoint 11703 | -8/Garrison | Garrison Relay disabled 11792 | -8/Garrison | Triggered checkpoint 11846 | -8/Garrison | Triggered checkpoint 11862 | -8/Garrison | Triggered checkpoint 11896 | -8/Garrison | Destroyed 9 combat bots 12000 | -8/Garrison | Discovered new exit (range 14) 12000 | -8/Garrison | Discovered new exit (range 66) 12000 | -8/Garrison | Discovered new exit (range 102) 12000 | -8/Garrison | Discovered new exit (range 60) 12088 | -8/Garrison | Triggered checkpoint 12145 | -8/Garrison | Triggered checkpoint 12378 | -8/Garrison | Triggered checkpoint 12433 | -8/Garrison | Garrison Relay disabled 12471 | -8/Garrison | Expanded RIF knowledge: Zone Cloak 12743 | -8/Garrison | Triggered checkpoint 12858 | -8/Garrison | Entered Materials 12858 | -8/Materials | Accompanied by 1 ally 12859 | -8/Materials | Identified exit to Storage 12881 | -8/Materials | Build established: Scavenger-Mutant 13580 | -8/Materials | Discovered new exit (range 9) 14125 | -8/Materials | Discovered new exit (range 13) 14170 | -8/Materials | Build established: Mutant 14206 | -8/Materials | Learned Factory stockpile data 14251 | -8/Materials | Identified exit to Factory 14288 | -8/Materials | Learned 2 Lower Caves zone layouts 14331 | -8/Materials | Learned location of 1 exit from Lower Caves 14349 | -8/Materials | Learned Storage security intel 14374 | -8/Materials | Learned Factory trap positions 14407 | -8/Materials | Learned Storage terminal intel 14652 | -8/Materials | Entered Storage 14652 | -8/Storage | Accompanied by 1 ally 14656 | -8/Storage | Loaded intel: 16 terminal locations 14657 | -8/Storage | Loaded intel: 1 garrison access location 14675 | -8/Storage | Assisted by bots powering up and referring to "LRC-V3" 14721 | -8/Storage | Learned location of Armory (-4) 14785 | -8/Storage | Garrison activated, responded to threat 14974 | -8/Storage | Build established: Commander-Mutant 15173 | -8/Storage | Repaired Lyr. Heavy Armor Plating 16133 | -8/Storage | Identified exit to Garrison 16202 | -8/Storage | Learned location of 2 exits from Factory 16247 | -8/Storage | Learned Factory security intel 16248 | -8/Storage | Learned 8 Factory zone layouts 16256 | -8/Storage | Garrison activated, responded to threat 16259 | -8/Storage | Learned location of Lower Caves (-6) 16276 | -8/Storage | Learned location of 1 exit from Lower Caves 16700 | -8/Storage | Entered Garrison 16700 | -8/Garrison | Accompanied by 10 allies 16725 | -8/Garrison | Discovered exit to Recycling (range 66) 16725 | -8/Garrison | Discovered exit to Recycling (range 48) 16725 | -8/Garrison | Discovered exit to Recycling (range 43) 16770 | -8/Garrison | Triggered checkpoint 16786 | -8/Garrison | Triggered checkpoint 16836 | -8/Garrison | Triggered checkpoint 16884 | -8/Garrison | Expanded RIF knowledge: Zone Cloak 16921 | -8/Garrison | Learned Recycling security intel 16953 | -8/Garrison | Triggered checkpoint 16976 | -8/Garrison | Garrison Relay disabled 17033 | -8/Garrison | Entered Recycling 17033 | -8/Recycling | Accompanied by 10 allies 17034 | -8/Recycling | Identified exit to Factory 17035 | -8/Recycling | Identified exit to Scraptown 17037 | -8/Recycling | Loaded intel: 5 recycling unit locations 17717 | -8/Recycling | Learned Factory garrison access intel 17750 | -8/Recycling | Learned location of 2 exits from Lower Caves 17771 | -8/Recycling | Learned location of 2 exits from Lower Caves 17784 | -8/Recycling | Learned Storage stockpile data 18084 | -8/Recycling | Scanned before Scraplab entrance 18103 | -8/Recycling | Entered Scraplab 18243 | -8/Recycling | Angered Scraplab inhabitants 18286 | -8/Recycling | Found Prototype Device 18286 | -8/Recycling | Identified Scrap Engine 18761 | -8/Recycling | Entered Factory 18761 | -6/Factory | Accompanied by 7 allies 18761 | -6/Factory | Evolved 4 slots: Power x1, Propulsion x1, Utility x2 18762 | -6/Factory | Identified exit to Factory 18763 | -6/Factory | Identified exit to Lower Caves 18765 | -6/Factory | Loaded intel: 110 trap records 18769 | -6/Factory | Loaded intel: 4 garrison access locations 18991 | -6/Factory | Lost 5 allies 19285 | -6/Factory | Build established: Scavenger-Mutant 19818 | -6/Factory | Build established: Mutant 20006 | -6/Factory | Repaired Lyr. Heavy Armor Plating 20160 | -6/Factory | Self-destructed Last Messages --------------- 20088_ K-01 Serf knocked back. 20090_ R-10 Processor collects Carbon-fiber Leg. 20090_ Critical hit (Burn: +37). 20091_ G-50 Soldier destroyed. 20091_ U-05 Engineer builds a Wall. 20094_ G-50 Soldier destroyed. 20095_ U-05 Engineer builds a Wall. 20098_ Overheating: Hcp. Storage Unit damaged (-327). 20098_ R-10 Processor collects Carbon-fiber Leg. 20101_ R-10 Processor knocked back. 20105_ Destroyed Hpw. Tractor Beam. 20107_ Dropped Lgt. Nuclear Core. 20130_ Acquired 58 matter. 20134_ Destroyed Com. Wheel. 20134_ R-10 Processor knocked back. 20156_ Acquired 58 matter. 20157_ K-01 Serf collects debris. 20158_ Slug penetrates Wall. 20158_ K-01 Serf destroyed. Map ----- +----------------------------------------------------+ | ?????????????????????????????????????????????????? | | ?????????????????????????????????????????????????? | | ?????????????????????????????????????????????????? | | ?????????????????????????????????????????????????? | | ?????????????????????????????????????????????????? | | ????????????????????????????????????????########## | | ???????????????????????????????????????? | | ???????????????????????????????????????? | | ??????????????????????????? ????????? | | ?????????????????????????? +???????? """" """ | | ?????????????????????????? ##??????? """" """ | | ?????????????????#####??? ??????? """" """ | | ??????????????? ??? #??????# """" """ | | ?????????????? ??? #??????# """" """ | | ?????????????? T ??"" #??????# """" """ | | ?????????????? ?""" #??????# | | ??????????????? """" #??????# = | | ????????????????# """" #??????# | | ????????????????# """" ##############+### | | ????????????????# """" " | | ????????????????+ p %" | | ????????????????# h " | | ???^????????????# =%% | | ????????????????# % %= | | ?????????????????########/##### #### ##/### | | ?????????????????????# @ * # #??# | | ?????????????????????# """" # #??# % | | ?????o???????????????# """ " # ##### | | ?????????????????????# """ % # ^^ + | | ?????????????????????# % # ##### | | ?????????????????????# # #?## | | ?????????????????????# " "" #######?# | | ?????????????????????# "R"" #???????# | | "????????????????????#! """" #???????## | | "???????????????????###########????????# | | ????????????????????##?????????????????## | | ????????????????????????????????????????# | | ????????????????????????????????????????########## | | ????????????????????????????????????????# | | ????????????????????????????????????????# | | ????????????????????????????????????????# ! ! | | ????????????????????????????????????????# | | ???????????????###??????????????????????# ! | | ???^^^^^??????? #??????????????????????#/ | | ???????????????""#???????##########?????# """ " | | ???????????????""#???????# #?????# """ " | | ???????????????""#???????# #?????# """ " | | ???????????????""#???????# #?????# "" | | ???????????????""#???????# #?????#! "" | | ???????????????""#???????# #?????# ^ | +----------------------------------------------------+ Best States ------------- Heat Dissipation 64 Energy Generation 30 Energy Capacity 325 Matter Stores 300 Matter Capacity 300 Sight Range 18 Terrain Scan Range 16 Terrain Scan Density 10 Armor Coverage 800 Resistance: TH 20 Weapon Shielding 66 Evasion (%) 45 Recoil Reduction 2 Defensive Hacking 10 Relay Coupler Types 1 Relay Coupler Value 22 Item Schematics ----------------- Multitool | -8/Materials | Scanalyzed Ripper | -8/Materials | Scanalyzed Mak. Power Source | -8/Materials | Scanalyzed Adv. Plasma Cannon | -8/Materials | Scanalyzed Lyr. Heavy Armor Plating | -8/Materials | Scanalyzed System Restoration Module | -8/Recycling | Hacked Robot Schematics ------------------ None Fabricated ------------ Nothing Alien Tech Used ----------------- None Achievements -------------- None Challenges ------------ None Game ------ Seed PlasmaJunkBasin Manual? 0 Play Time 02:18:52 Cumulative 310.9 hours Start 2025.02.27 @ 03:25:03 End 2025.03.05 @ 22:20:03 Sessions 15 Manual Loads 0 Difficulty Rogue Special Mode None Game No. 263 Rogue 227 Adventurer 36 Explorer 0 Win Type - Total 4 Types 2/0/0/1/0/0/0/1/0 Lore% 60 Gallery% 70 Achievement% 61 Wizard Run 0 Options --------- Layout 2 ASCII 0 Keyboard 0 Movement Numpad Keybinds 0 Fullscreen 1 Font 48/Smallcaps Map View 50x44 Zoom Use 0% Tactical HUD 1 Map Filters NONE Filters NONE Steam 1 RUN: 4a149b52-6fa2-46c1-8dc9-856d1611baea